Cogmind - Beta 15 @@@ ROGUE MODE // 2025.08.02 @ 14:41:16 Player: winnking222 Result: Self-destructed Performance ------------- Evolutions (4) 2000 Regions Visited (5) 1000 Robots Destroyed (59) 295 Value Destroyed (2117) 2117 Prototype IDs (19) 380 Alien Tech Used (0) 0 Bonus (1321) 1321 TOTAL SCORE: 7113 Bonus ------- High Alert Combat Kills 274 Follower Combat Kills 747 Registered with UFD 300 Cogmind --------- Core Integrity 659/850 Matter 231/300 Energy 83/290 System Corruption 2% Temperature Cool (78) Movement Treading (245) Ox1 Location -6/Extension Parts ------- > --- POWER (1) -------- Improved Deuterium Engine > --- PROPULSION (4) --- Armored Treads Improved Medium Treads > --- UTILITY (7) ------ Scrap Suit Large Storage Unit Deep Structural Scanner Advanced Targeting Computer Makeshift Light Armor Plating Gun Armor > --- WEAPON (3+2) ----- Autogun Overtuned Barrage Gun Overtuned Barrage Gun Junk Cannon (++) > --- INVENTORY (15) --- Light Angular Momentum Engine Improved Medium Treads Armored Wheel Improved Heat Sink Surveybot 17 Chip Improved Light Armor Plating Improved Light Armor Plating Improved Light Armor Plating Layered Medium Armor Plating Insulated Plating Autogun Autogun CPS Tube (2) Vortex Trap DRS Beacon (Ready) Peak State ------------ > --- POWER ------------ Improved Deuterium Engine > --- PROPULSION ------- Armored Treads Improved Medium Treads Overtuned Medium Treads Overtuned Medium Treads > --- UTILITY ---------- Scrap Suit Large Storage Unit Deep Structural Scanner Advanced Targeting Computer Makeshift Light Armor Plating Gun Armor > --- WEAPON ----------- Overtuned Barrage Gun Overtuned Barrage Gun Junk Cannon Segregator > --- INVENTORY -------- Light Angular Momentum Engine Improved Medium Treads Armored Wheel Surveybot 17 Chip Improved Light Armor Plating Improved Light Armor Plating Improved Light Armor Plating Layered Medium Armor Plating Insulated Plating Autogun Autogun Autogun CPS Tube Vortex Trap DRS Beacon [Rating: 81] Favorites ----------- Power Subdweller Power Source Engine Subdweller Power Source Power Core Light Nuclear Core Propulsion Spiked Treads Treads Spiked Treads Leg Aluminum Leg Wheel Armored Wheel Utility Makeshift Light Armor Plating Device Cooling System Storage Small Storage Unit Processor Advanced Targeting Computer Protection Makeshift Light Armor Plating Weapon Advanced Beam Cannon Energy Gun Medium Laser Energy Cannon Advanced Beam Cannon Ballistic Gun Battle Rifle Special Weapon Junk Cannon Slashing Weapon Segregator Build | -11 -10 -10 -9 -6 -6 ------- Run | Yrd Mat Sub Scr Fac Ext Slots Evolved 8 | . . . . 8 . Power . | . . . . . . Propulsion 2 | . . . . 2 . Utility 5 | . . . . 5 . Weapon 1 | . . . . 1 . Parts Attached 42 | 6 4 10 10 7 5 Power 6 | 1 . 1 2 . 2 Engine 5 | 1 . 1 1 . 2 Core 1 | . . . 1 . . Reactor . | . . . . . . Propulsion 11 | 2 . 4 3 1 1 Treads 7 | . . 3 2 1 1 Leg 3 | 2 . 1 . . . Wheel 1 | . . . 1 . . Hover . | . . . . . . Flight . | . . . . . . Utility 11 | 1 2 1 2 4 1 Device 5 | . 2 . 1 2 . Storage 2 | 1 . . 1 . . Processor 1 | . . . . 1 . Hackware . | . . . . . . Protection 3 | . . 1 . 1 1 Artifact . | . . . . . . Weapon 14 | 2 2 4 3 2 1 Energy Gun 1 | 1 . . . . . Energy Cannon 3 | . 2 1 . . . Ballistic Gun 9 | 1 . 3 2 2 1 Ballistic Cannon . | . . . . . . Launcher . | . . . . . . Special Weapon 1 | . . . 1 . . Impact Weapon . | . . . . . . Slashing Weapon . | . . . . . . Piercing Weapon . | . . . . . . Special Melee Weapon . | . . . . . . Unidentified Prototypes 2 | . 1 . 1 . . Parts Lost 9 | . . 6 . . 3 Power 1 | . . 1 . . . Propulsion 6 | . . 4 . . 2 Utility . | . . . . . . Weapon 2 | . . 1 . . 1 Highest Loss Streak 2 | . . 2 . . 1 To Critical Strikes . | . . . . . . Average Backups 7 | 3 5 6 7 6 10 Power . | . . . . . 1 Propulsion 1 | 2 2 . 2 1 1 Utility 3 | . 1 3 3 2 4 Weapon 2 | 1 1 2 1 1 1 Tool/Special . | . . . . . . Unused Backups 28 | . 1 9 7 . 11 Power 1 | . . . . . 1 Propulsion 7 | . 1 . 5 . 1 Utility 11 | . . 4 1 . 6 Weapon 8 | . . 5 1 . 2 Tool/Special 1 | . . . . . 1 Average Slot Usage (%) 86 | . 88 95 76 82 83 Engine 9 | . 14 13 6 . 4 Core 1 | . . . 3 6 . Treads 16 | . . 18 17 19 19 Leg 4 | . 27 5 . . . Wheel 1 | . . . 5 . . Device 4 | . 3 6 . 11 11 Storage 12 | . 14 14 13 6 5 Protection 9 | . . 7 13 12 11 Energy Gun 1 | . 13 . . . . Energy Cannon 7 | . 1 18 . . . Ballistic Gun 12 | . 13 9 12 18 16 Special Weapon 1 | . . . 3 . 4 Peak Build Rating 81 | 6 13 18 34 53 81 Average Rating 25 | 5 6 15 19 52 73 On Entrance 20 | . 6 13 17 34 53 Naked Turns 139 | . . . 139 . . Heaviest Build 66 | 13 20 20 43 46 66 Greatest Support 100 | 20 20 40 50 70 100 Greatest Overweight (x) 8 | 1 1 1 8 3 1 Average Overweight (x) . | . . . 1 . . Largest Inventory Capacity 15 | 8 8 8 15 15 15 Average Capacity 10 | 7 8 8 11 15 15 Most Carried 15 | 5 8 8 15 15 15 Average Carried 8 | 3 5 7 9 9 12 Final Capacity 15 | 8 8 8 15 15 15 Final Carried 15 | 4 8 8 15 10 15 Class Distribution -------------------- 53% | Mutant 29% | Derelict-Mutant 10% | Commander-Scrapper 7% | Scrapper Dominant Class ---------------- Mutant | -10/Materials Mutant | -10/Subcaves Mutant | -9/Scraptown Scrapper | -6/Factory Commander-Scrapper | -6/Extension Resources | -11 -10 -10 -9 -6 -6 ----------- Run | Yrd Mat Sub Scr Fac Ext Matter Collected 1835 | 278 34 259 130 162 972 Remotely . | . . . . . . Salvage Created 2667 | 102 50 505 . 71 1939 Parts 103 | 7 3 28 . 2 63 Haulers Intercepted . | . . . . . . Recyclers Shooed 1 | . . . . . 1 Parts Field Recycled . | . . . . . . Retrieved Matter . | . . . . . . Parts Self-Destructed 14 | . . 14 . . . Prevented . | . . . . . . Kills | -11 -10 -10 -9 -6 -6 ------- Run | Yrd Mat Sub Scr Fac Ext Combat Hostiles Destroyed 47 | . 1 15 . 1 30 Guns 27 | . 1 5 . 1 20 Cannons 9 | . . 7 . . 2 Classes Destroyed 15 | 1 1 3 . . 10 Builder 1 | . . . . . 1 Tunneler 5 | 5 . . . . . Recycler 3 | . . . . . 3 Carrier 1 | . . . . . 1 Mechanic 1 | . . . . . 1 Watcher 1 | . . . . . 1 Swarmer 13 | . . 5 . . 8 Saboteur 2 | . . . . . 2 Grunt 5 | . 1 . . . 4 Brawler 2 | . . . . . 2 Sentry 12 | . . 1 . 1 10 Specialist 1 | . . . . . 1 Hunter 2 | . . . . . 2 Behemoth 1 | . . . . . 1 Subdweller 9 | . . 9 . . . Best Kill Streak 5 | 2 1 5 . 1 5 Combat Bots Only 5 | . 1 5 . 1 5 Max Kills in Single Turn 2 | 1 1 2 . 1 2 Gunslinging . | . . . . . . Exploded . | . . . . . . Melee . | . . . . . . Uniques/NPCs Destroyed . | . . . . . . Combat | -11 -10 -10 -9 -6 -6 -------- Run | Yrd Mat Sub Scr Fac Ext Hostile Shots Fired 493 | . . 91 . 24 378 Missed 172 | . . 27 . 13 132 Hits 321 | . . 64 . 11 246 Melee 3 | . . . . . 3 Projectile 318 | . . 64 . 11 243 AOE 5 | . . 2 . . 3 Critical Strikes 3 | . . . . . 3 Part Disruptions 2 | . . . . . 2 Damage Taken 3650 | . . 1540 . 66 2044 Core 412 | . . 221 . 29 162 Absorbed by Shields 371 | . . . . . 371 Regen/Repaired (Parts) 139 | . . . . . 139 Core Remaining (%) 55 | 100 . . 11 . . Volleys Fired 252 | 18 5 118 . 6 105 Largest 4 | 2 2 2 . 3 4 Hottest 136 | 70 70 136 . 83 83 Shots Fired 576 | 36 10 217 . 18 295 Gun 359 | 36 10 46 . 18 249 Cannon 171 | . . 171 . . . Launcher . | . . . . . . Special 46 | . . . . . 46 Kinetic 336 | 18 5 46 . 18 249 Thermal 194 | 18 5 171 . . . Explosive . | . . . . . . Electromagnetic . | . . . . . . Impact 46 | . . . . . 46 Robot Hit Streak 25 | 4 5 25 . 7 17 Robot Miss Streak 7 | 4 3 2 . 2 7 Penetration Max . | . . . . . . Secondary Targets 4 | . . . . . 4 Max Gunslinging Chain 1 | . . . . . 1 Shots Hit Robots 306 | 18 6 80 . 11 191 Core Hits 97 | 7 1 22 . 3 64 Critical Kills 6 | . . 4 . . 2 Critical Parts Destroyed 12 | . . . . 2 10 Critical Strikes 21 | . . 5 . 2 14 Meltdown 3 | . . 3 . . . Destroy 12 | . . 2 . 2 8 Smash 6 | . . . . . 6 Melee Attacks . | . . . . . . Impact . | . . . . . . Slashing . | . . . . . . Piercing . | . . . . . . Sneak Attacks . | . . . . . . Combat Hostiles . | . . . . . . Follow-up Attacks . | . . . . . . Damage Inflicted 7945 | 199 67 1544 . 209 5926 Guns 4187 | 199 61 395 . 209 3323 Cannons 1149 | . . 1149 . . . Explosions . | . . . . . . Melee . | . . . . . . Ramming 58 | . 6 . . . 52 Kinetic 4026 | 63 36 395 . 209 3323 Thermal 1310 | 136 25 1149 . . . Explosive . | . . . . . . Electromagnetic . | . . . . . . Impact 2551 | . . . . . 2551 Slashing . | . . . . . . Piercing . | . . . . . . Highest Corruption 2 | . . . . . 2 Average Corruption 2 | . . . . . 2 Corruption Purged . | . . . . . . Corruption Blocked . | . . . . . . Effects 1 | . . . . . 1 Matter Fused 1 | . . . . . 1 Overload Shots . | . . . . . . Overflow Damage 711 | . . . . . 711 Projectiles 711 | . . . . . 711 Explosions . | . . . . . . Melee . | . . . . . . Knockbacks 15 | . . . . . 15 Impact 13 | . . . . . 13 Kinetic . | . . . . . . Secondary 2 | . . . . . 2 Self-Inflicted Damage . | . . . . . . Shots . | . . . . . . Rammed 4 | . . . . . 4 Targets Rammed 6 | . 1 . . . 5 Kicked 1 | . 1 . . . . Crushed 1 | . . . . . 1 Highest Temperature 347 | 100 40 12 . 237 347 Average Temperature 84 | 36 19 9 . 117 101 Received Heat Transfer 681 | . . 255 . 6 420 Siege Activations . | . . . . . . Martial Activations . | . . . . . . Shielding Activations . | . . . . . . Robots Disrupted . | . . . . . . Combat Hostiles . | . . . . . . Robots Corrupted 9 | . . . . . 9 Combat Hostiles 8 | . . . . . 8 Parts Fried 13 | . . . . . 13 Impact Corruptions 23 | . . . . . 23 Robots Melted 3 | . . 3 . . . Combat Hostiles 3 | . . 3 . . . Parts Melted 11 | 1 . 10 . . . Heat Transferred 2553 | 407 74 2072 . . . Parts Sabotaged . | . . . . . . Parts Stolen . | . . . . . . Parts Stripped . | . . . . . . Power Chain Reactions . | . . . . . . Alert | -11 -10 -10 -9 -6 -6 ------- Run | Yrd Mat Sub Scr Fac Ext Maximum Alert Level 4 | . . . . . 4 Low Security (%) 72 | 100 100 . . 100 51 Level 1 13 | . . . . . 23 Level 2 4 | . . . . . 7 Level 3 8 | . . . . . 16 Level 4 . | . . . . . 1 Level 5 . | . . . . . . High Security . | . . . . . . Max Security . | . . . . . . Peak Influence 1148 | 5 33 . . 20 1148 Initial . | . . . . . . Average 162 | 1 2 . . 2 289 Influence Increases 2379 | 25 48 180 . 30 2096 Destroy 0b10 Robot/C 1160 | . 20 120 . 20 1000 Destroy 0b10 Robot/NC 75 | 25 . . . . 50 Destroy Leader 116 | . 10 . . 10 96 Allied During Kill 797 | . . . . . 797 Successful Hack 47 | . 3 . . . 44 Disable Machine 45 | . . . . . 45 Destroy Structure 19 | . . . . . 19 Lose Combat Pursuer 120 | . 15 60 . . 45 Influence Decreases 1253 | 25 48 92 88 30 970 Entered New Map 88 | . . . 88 . . Time Decay 715 | 25 48 92 . 30 520 Lost Part 30 | . . . . . 30 Lost Ally 420 | . . . . . 420 Squads Dispatched 6 | . 1 . . . 5 Investigation 1 | . . . . . 1 Extermination . | . . . . . . Reinforcement 2 | . 1 . . . 1 Assault 3 | . . . . . 3 Garrison . | . . . . . . Intercept . | . . . . . . Searches Triggered . | . . . . . . Construction Impeded 1 | . . . . . 1 Haulers Reinforced . | . . . . . . Active Scanning Responses . | . . . . . . Cargo Convoy Interrupts . | . . . . . . Stealth | -11 -10 -10 -9 -6 -6 --------- Run | Yrd Mat Sub Scr Fac Ext Distress Signals 5 | . 1 . . . 4 Communications Jammed . | . . . . . . Distress Signals . | . . . . . . Times Spotted 90 | . 9 21 . 1 59 Peak Tracking Total 13 | . 3 5 . 1 13 Tactical Retreats 6 | . 1 2 . . 3 Traps | -11 -10 -10 -9 -6 -6 ------- Run | Yrd Mat Sub Scr Fac Ext Traps Triggered 6 | . 2 4 . . . Indirectly . | . . . . . . Trap Hack Attempts . | . . . . . . Triggered . | . . . . . . Disarmed . | . . . . . . Reprogrammed . | . . . . . . Reused . | . . . . . . Traps Extracted . | . . . . . . Installed . | . . . . . . Triggered . | . . . . . . Most Traps Carried 1 | . . 1 1 1 1 Machines | -11 -10 -10 -9 -6 -6 ---------- Run | Yrd Mat Sub Scr Fac Ext Machines Disabled 7 | . . 1 . . 6 Max in Single Turn 1 | . . 1 . . 1 Machines Repaired . | . . . . . . Machines Dismantled . | . . . . . . Machines Sabotaged . | . . . . . . Overloaded Fab Kills . | . . . . . . Hacking | -11 -10 -10 -9 -6 -6 --------- Run | Yrd Mat Sub Scr Fac Ext Machines Accessed 21 | . 2 2 8 . 9 Terminals 11 | . 2 . . . 9 Fabricators . | . . . . . . Repair Stations . | . . . . . . Recycling Units . | . . . . . . Scanalyzers . | . . . . . . Garrison Access . | . . . . . . Total Hacks 84 | . 6 5 58 . 15 Successful 73 | . 3 5 58 . 7 Failed 11 | . 3 . . . 8 Catastrophic 1 | . . . . . 1 Database Lockouts . | . . . . . . Manual 7 | . 5 . 1 . 1 Terminals 21 | . 6 . . . 15 Fabricators . | . . . . . . Repair Stations . | . . . . . . Recycling Units . | . . . . . . Scanalyzers . | . . . . . . Garrison Access . | . . . . . . Terminal Hacks 70 | . . 5 58 . 7 Record 56 | . . 4 51 . 1 Robot Analysis 6 | . . . 6 . . Open Door 6 | . . . . . 6 Proto ID Catalog 2 | . . 1 1 . . Fabricator Hacks . | . . . . . . Repair Station Hacks . | . . . . . . Recycling Unit Hacks . | . . . . . . Scanalyzer . | . . . . . . Garrison Access Hacks . | . . . . . . Unauthorized Hacks 3 | . 3 . . . . Terminals 3 | . 3 . . . . Botnet 2 | . 2 . . . . Skim 1 | . 1 . . . . Fabricators . | . . . . . . Repair Stations . | . . . . . . Recycling Units . | . . . . . . Scanalyzers . | . . . . . . Garrison Access . | . . . . . . Data Cores Recovered 1 | . . . . . 1 Used . | . . . . . . Hacking Detections 8 | . 1 . . . 7 Full Trace Events 1 | . . . . . 1 Feedback Events . | . . . . . . Feedback Blocked . | . . . . . . Robot Schematics Acquired . | . . . . . . Robots Built . | . . . . . . Authchips . | . . . . . . Time . | . . . . . . Total Robot Build Rating . | . . . . . . Part Schematics Acquired . | . . . . . . Parts Built . | . . . . . . Authchips . | . . . . . . Time . | . . . . . . Total Part Build Rating . | . . . . . . Parts Repaired . | . . . . . . Time . | . . . . . . Parts Recycled . | . . . . . . Recycled Matter . | . . . . . . Retrieved Matter . | . . . . . . Retrieved Components . | . . . . . . Parts Scanalyzed . | . . . . . . Part Schematics Acquired . | . . . . . . Parts Damaged . | . . . . . . Bothacking | -11 -10 -10 -9 -6 -6 ------------ Run | Yrd Mat Sub Scr Fac Ext Used RIF Installer . | . . . . . . Robots Hacked . | . . . . . . Non-combat . | . . . . . . Combat . | . . . . . . Robot Hacks Applied . | . . . . . . Relay Couplers Released . | . . . . . . Fabnet Peak Effective % . | . . . . . . Robots Rewired 19 | . . . . . 19 Allies Hacked . | . . . . . . Hacks Repelled . | . . . . . . Allies | -11 -10 -10 -9 -6 -6 -------- Run | Yrd Mat Sub Scr Fac Ext Total Allies 26 | . . . . . 26 Largest Group 15 | . . . . . 15 Highest-Rated Group 537 | . . . . . 537 Highest-Rated Ally 159 | . . . . . 159 Total Orders . | . . . . . . Ally Attacks 190 | . . . . . 190 Total Damage 4583 | . . . . . 4583 Kills 23 | . . . . . 23 Allies Corrupted . | . . . . . . Allies Melted . | . . . . . . Intel | -11 -10 -10 -9 -6 -6 ------- Run | Yrd Mat Sub Scr Fac Ext Active Infowar (turns) 2237 | . 205 . . 239 1793 Structural 2032 | . . . . 239 1793 Seismic 205 | . 205 . . . . Robot Analysis Total 6 | . . . 6 . . Derelict Logs Recovered 5 | . . 1 4 . . Drone Launches . | . . . . . . Drone Recoveries . | . . . . . . Exploration | -11 -10 -10 -9 -6 -6 ------------- Run | Yrd Mat Sub Scr Fac Ext Turns Passed 11537 | 160 993 4372 3946 273 1793 Spaces Moved 6458 | 92 275 2395 2681 167 848 Core 469 | 23 . . 446 . . Treads 4110 | . . 2014 1085 163 848 Legs 725 | 69 275 381 . . . Wheels 1154 | . . . 1150 4 . Hover . | . . . . . . Flight . | . . . . . . Fastest Speed 50 | 50 120 120 50 135 150 Average Speed 147 | 104 120 153 144 149 151 Slowest Speed 450 | 120 190 190 450 150 245 Overloaded Moves . | . . . . . . Propulsion Burnouts . | . . . . . . Robots Hopped 11 | . 11 . . . . Potential Cave-ins 9 | . . 9 . . . Cave-ins Triggered . | . . . . . . Exploration Rate (%) 52 | 5 31 97 91 4 84 Regions Visited 5 Branch Regions 3 Pre-discovered Areas 11 | . . 3 8 . . Known Exits Taken 1 | . . . . 1 . Unknown Exits Taken 4 | 1 1 1 1 . . Scrap Searched 12 | . . 4 8 . . Spaces Dug 33 | . . 32 . . 1 Terrain Destroyed 44 | . . 34 . . 10 Melee . | . . . . . . Projectile 44 | . . 34 . . 10 AOE . | . . . . . . Terrain Rammed . | . . . . . . Walls Destroyed . | . . . . . . Machines Disabled . | . . . . . . Actions | -11 -10 -10 -9 -6 -6 --------- Run | Yrd Mat Sub Scr Fac Ext Total 8103 | 123 917 2880 2764 185 1234 Wait 1046 | . 630 324 21 . 71 Move 6434 | 91 255 2394 2680 166 848 Hop 8 | . 8 . . . . Pick Up 76 | 8 9 20 27 2 10 Fast Attach 5 | 2 1 . 2 . . Attach 35 | 4 4 7 8 9 3 Detach 2 | . . . . 2 . Swap 10 | . 1 3 3 . 3 Drop 43 | . 3 14 23 . 3 Fire 252 | 18 5 118 . 6 105 Melee . | . . . . . . Ram . | . . . . . . Kick 1 | . 1 . . . . Crush 5 | . . . . . 5 Escape Stasis . | . . . . . . Rewire 186 | . . . . . 186 Trap . | . . . . . . Miscellaneous . | . . . . . . Route ------- -11/Scrapyard -10/Materials (discovered 2 exits: [*Min] / *Sub) -10/Subcaves (discovered 4 exits: [*Mat x2] / *Scr x2) -9/Scraptown (discovered 2 exits: [*Fac x2]) -6/Factory (discovered 5 exits: Fac x2 / Low x2 / *Ext) -6/Extension (discovered 3 exits: *Fac x2 / [*Cet]) History --------- Turn | Location | Event 5 | -11/Scrapyard | Discovered new exit (range 16) 161 | -11/Scrapyard | Entered Materials 162 | -10/Materials | Met a group of wandering Federalists 317 | -10/Materials | Build established: Mutant 946 | -10/Materials | Discovered new exit (range 16) 1151 | -10/Materials | Discovered new exit (range 3) 1154 | -10/Materials | Entered Subcaves 1155 | -10/Subcaves | Continued accompanying wandering Federalists (3) 1155 | -10/Subcaves | Approached by a straggling Scientist 1164 | -10/Subcaves | Scientist uncovered a shortcut to Scraptown 1335 | -10/Subcaves | Learned location of Recycling (-9) 1419 | -10/Subcaves | Wandering Federalist uncovered a shortcut to Scraptown 1660 | -10/Subcaves | Ambushed by Subdwellers from Twisted Machinery 1786 | -10/Subcaves | Ambushed by Subdweller buried in earth 1966 | -10/Subcaves | Visited Clippyterm 1970 | -10/Subcaves | Learned Research machine intel 1970 | -10/Subcaves | Learned location of Extension (-6) 2215 | -10/Subcaves | Learned location of Zion (-7) 2215 | -10/Subcaves | Met a Zionite searching for "candidates" 2638 | -10/Subcaves | Discovered new exit (range 6) 2953 | -10/Subcaves | Ambushed by Subdweller buried in earth 2954 | -10/Subcaves | Ambushed by Subdweller buried in earth 2960 | -10/Subcaves | Core integrity fell below 50% 3339 | -10/Subcaves | Visited 4L-MR0's lab 3363 | -10/Subcaves | Found Gun Armor 3536 | -10/Subcaves | Discovered new exit (range 7) 3686 | -10/Subcaves | Core integrity fell below 20% 3854 | -10/Subcaves | Shifting Twisted Machinery released Spk. Treads 4013 | -10/Subcaves | Shifting Twisted Machinery released Sub. Laser 4161 | -10/Subcaves | Build established: Derelict-Mutant 5526 | -10/Subcaves | Entered Scraptown 5622 | -9/Scraptown | Heard Great Nut preacher, LISTEN AND RECITE! 5683 | -9/Scraptown | Visited SPCMW 5696 | -9/Scraptown | Visited IN-MT5's Study 5725 | -9/Scraptown | Visited Assassins FH 6128 | -9/Scraptown | Visited Cave Peace 6141 | -9/Scraptown | Visited Spacefarers 6186 | -9/Scraptown | Visited UFD Registry 6206 | -9/Scraptown | Visited Bundlers 6275 | -9/Scraptown | Visited Cyclists 6363 | -9/Scraptown | Scanned Subdweller tech in exchange for log data 6366 | -9/Scraptown | Learned location of Armory (-3) 6368 | -9/Scraptown | Learned Research security intel 6370 | -9/Scraptown | Learned Factory trap positions 6371 | -9/Scraptown | Learned Factory stockpile data 6394 | -9/Scraptown | Discovered new exit (range 5) 6539 | -9/Scraptown | Registered with UFD as "Metaeater" 6576 | -9/Scraptown | Visited Junk Cannon Lab 6623 | -9/Scraptown | Visited Science Guys 6675 | -9/Scraptown | Visited Analyses Database 6732 | -9/Scraptown | Visited Scrap Suit Storage 6767 | -9/Scraptown | Visited Science Testing Area 6801 | -9/Scraptown | Visited Modified Component R&D 6833 | -9/Scraptown | Visited Junk Repository 6859 | -9/Scraptown | Visited Derelict Rescue Squad 6868 | -9/Scraptown | Found DRS Beacon 6901 | -9/Scraptown | Visited Cartography Club 6952 | -9/Scraptown | Found Surveybot 17 Chip 7028 | -9/Scraptown | Found Deep Structural Scanner 7034 | -9/Scraptown | Learned location of Storage (-9) 7034 | -9/Scraptown | Learned location of Upper Caves (-5) 7034 | -9/Scraptown | Learned location of Cetus (-6) 7034 | -9/Scraptown | Learned 8 Research zone layouts 7034 | -9/Scraptown | Learned 16 Research zone layouts 7034 | -9/Scraptown | Learned 4 Storage zone layouts 7034 | -9/Scraptown | Learned 12 Lower Caves zone layouts 7034 | -9/Scraptown | Learned 16 Lower Caves zone layouts 7034 | -9/Scraptown | Learned 16 Upper Caves zone layouts 7034 | -9/Scraptown | Learned Research emergency access door positions 7034 | -9/Scraptown | Learned location of 3 exits from Factory 7034 | -9/Scraptown | Learned location of 1 exit from Research 7034 | -9/Scraptown | Learned location of 1 exit from Lower Caves 7213 | -9/Scraptown | Build established: Mutant 7448 | -9/Scraptown | Found Scrap Suit 8161 | -9/Scraptown | Entered Cyclist Reading Room 8263 | -9/Scraptown | Guru changed UFD alias to "Scrapparser" 8614 | -9/Scraptown | Found Prototype Special Weapon 8614 | -9/Scraptown | Identified Junk Cannon 9468 | -9/Scraptown | Discovered new exit (range 3) 9472 | -9/Scraptown | Entered Factory 9472 | -6/Factory | Evolved 8 slots: Propulsion x2, Utility x5, Weapon x1 9473 | -6/Factory | Identified exit to Lower Caves 9474 | -6/Factory | Identified exit to Factory 9474 | -6/Factory | Identified exit to Extension 9475 | -6/Factory | Loaded intel: 77 trap records 9592 | -6/Factory | Spotted B-75 Beast 9745 | -6/Factory | Entered Extension 9757 | -6/Extension | Attached Gun Armor, gained temporary slots: Weapon x2 9778 | -6/Extension | Build established: Scrapper 9829 | -6/Extension | Rescued A7 10126 | -6/Extension | Rescued a captive Derelict 10184 | -6/Extension | Rescued a captive Derelict 10185 | -6/Extension | Rescued a captive Derelict 10301 | -6/Extension | Rescued a captive Derelict 10339 | -6/Extension | Rescued a captive Derelict 10528 | -6/Extension | Build established: Commander-Scrapper 10639 | -6/Extension | Spotted B-75 Beast 10642 | -6/Extension | Destroyed B-75 Beast 10654 | -6/Extension | Discovered exit to Factory (range 17) 10659 | -6/Extension | Spotted B-75 Beast 10688 | -6/Extension | Allies destroyed B-75 Beast 10720 | -6/Extension | Disrupted transfer network 10905 | -6/Extension | Rescued a captive Derelict 11135 | -6/Extension | Rescued a captive Derelict 11145 | -6/Extension | First assault squad dispatched 11264 | -6/Extension | Lost 9 allies 11451 | -6/Extension | Discovered exit to Factory (range 10) 11452 | -6/Extension | Discovered new exit (range 6) 11457 | -6/Extension | Disrupted transfer network 11475 | -6/Extension | Extracted ID and sensor layout for unrecognized location from A7's data core 11538 | -6/Extension | Self-destructed Last Messages --------------- 11531_ Destroyed Terrain Scan Processor. 11531_ U-05 Engineer system corrupted by crushing effect. 11531_ Lgt. Ion Engine fried. 11531_ Wheel fried. 11531_ U-05 Engineer destroyed. 11531_ Slug penetrates 80-OU7(g). 11531_ 80-OU7(g) destroyed. 11531_ U-05 Engineer exits level. 11532_ H-66 Slayer suffers critical hit (Burn). 11533_ Slug penetrates K6-XBH(g). 11533_ K6-XBH(g) destroyed. 11534_ R-10 Processor exits level. 11535_ H-66 Slayer knocked back. 11536_ G-50 Soldier suffers critical hit (Burn). 11537_ X8-ILQ(b) heat damages Great Maul. 11537_ Penetrated by Slug. 11537_ Slug penetrates H-66 Slayer. 11537_ Penetrated by Slug. 11537_ G-50 Soldier destroyed. 11538_ G-50 Soldier heat damages core (-9). Map ----- +----------------------------------------------------+ | ############################ ####?? | | ????????#################### ####?? | | ??????????????????########## ####?? | | ??????????????????########## ####?? | | ????????????????????????#### ####?? | | ????????????????????????#### ####?? | | ????????????????????????#### ####?? | | ????????????????????????#### ####?? | | ????????????????????????#### ####?? | | ????????????????????????#### ####?? | | ???????????????????????##### ####?? | | ???????????????????????##### ####?? | | ???????????????????????##### ####?? | | ???????????????????????##### ####?? | | ???????????????????????####" ####?? | | ???????????????????????##### ####?? | | ???????????????????????##### #####? | | ????????????????????######## ###### | | ????????????????????######## ###### | | ????????####################=###### | | ????????####################k[##### | | ????????################ ""%% ; # | | ????????################ "/*%=%;# | | ???????? = l == [%!%# | | ???????? !%=b b g [% %<%# | | ???????? % g g@!%%%%%! # | | ???????? /%* % % !!## | | ???????? u u %!! ! # | | ????????################[!! hh< # | | ????????################ % % # | | ????????################## ! #;## | | ????????##################" "#### | | ????????????????????######"" ""#### | | ????????????????????########;###### | | ??????????????????????############# | | ??????????????????????############# | | | | | | | | | | | | | | | | | | | | | | | | | | | | | +----------------------------------------------------+ Best States ------------- Heat Dissipation 47 Energy Generation 16 Energy Capacity 290 Matter Stores 300 Matter Capacity 300 Sight Range 16 Terrain Scan Density 10 Armor Coverage 250 Resistance: EM 15 Evasion (%) 55 Targeting Accuracy 8 Recoil Reduction 4 Item Schematics ----------------- None Robot Schematics ------------------ None Fabricated ------------ Nothing Repaired ---------- Nothing Alien Tech Used ----------------- None Achievements -------------- Preemptive Strike Challenges ------------ None Game ------ Seed GunMissileBroadsword Manual? 0 Play Time 01:01:25 Cumulative 114.3 hours Start 2025.08.02 @ 13:33:37 End 2025.08.02 @ 14:41:16 Sessions 1 Manual Loads 0 Difficulty Rogue Special Mode None Game No. 178 Rogue 178 Adventurer 0 Explorer 0 Win Type - Total 1 Types 1/0/0/0/0/0/0/0/0/0 Lore% 67 Gallery% 58 Achievement% 51 Wizard Run 0 Options --------- Layout 0 ASCII 0 Keyboard 0 Movement Mouse Keybinds 0 Fullscreen 1 Font 16/SmallcapsGlow Map View 75x55 Zoom Use 0% Tactical HUD 1 Map Filters NONE Filters NONE Steam 1 RUN: 9439a2c9-d091-4c20-89d7-7e306c7db72e